fUSD/lending_fUSD_20260112
["ID","MTS","AMOUNT","RATE_DAILY","PERIOD"]
[401444792,1768224639352,-500.0,0.00016823,2]
[401444793,1768224639362,-500.0,0.00016823,2]
[401444794,1768224639371,-500.0,0.00016823,2]
[401444795,1768224639380,-500.0,0.00016823,2]
[401444796,1768224639390,-500.0,0.00016823,2]
[401444797,1768224639399,-500.0,0.00016823,2]
[401444798,1768224639408,-500.0,0.00016823,2]
[401444799,1768224639421,-500.0,0.00016823,2]
[401444800,1768224639431,-500.0,0.00016823,2]
[401444801,1768224639440,-250.0,0.00016823,2]
[401444802,1768224639450,-250.0,0.00016823,2]
[401444803,1768224639460,-250.0,0.00016823,2]
[401444804,1768224639470,-250.0,0.00016823,2]
[401444805,1768224639479,-250.0,0.00016823,2]
[401444806,1768224639489,-1000.0,0.00016823,2]
[401444807,1768224639501,-250.0,0.00016823,2]
[401444808,1768224639510,-1000.0,0.00016823,2]
[401444809,1768224639519,-250.0,0.00016823,2]
[401444810,1768224639528,-1000.0,0.00016823,2]
[401444811,1768224639538,-250.0,0.00016823,2]
[401444812,1768224639547,-1000.0,0.00016823,2]
[401444813,1768224639557,-1000.0,0.00016823,2]
[401444814,1768224639567,-1000.0,0.00016823,2]
[401444815,1768224639577,-1000.0,0.00016823,2]
[401444816,1768224639587,-1000.0,0.00016823,2]
[401444817,1768224639596,-1000.0,0.00016823,2]
[401444818,1768224639607,-1000.0,0.00016823,2]
[401444819,1768224639616,-1000.0,0.00016823,2]
[401444820,1768224639625,-1000.0,0.00016823,2]
[401444821,1768224639635,-1000.0,0.00016823,2]
[401444822,1768224639644,-155.33738213,0.00016836,2]
[401444823,1768224639654,-216.91872489,0.00016836,2]
[401444824,1768224639664,-184.82275868,0.00016836,2]
[401444825,1768224639673,-155.33738213,0.00016855,2]
[401444826,1768224639683,-216.91872489,0.00016855,2]
[401444827,1768224639692,-150.0,0.00016855,2]
[401444828,1768224639702,-184.82275868,0.00016855,2]
[401444829,1768224639711,-181.17466861,0.00016871,2]
[401444830,1768224639722,-155.33738213,0.00016873,2]
[401444831,1768224639731,-216.91872489,0.00016873,2]
[401444832,1768224639741,-184.82275868,0.00016873,2]
[401444833,1768224639751,-155.33738213,0.00016891,2]
[401444834,1768224639761,-216.91872489,0.00016891,2]
[401444835,1768224639771,-184.82275868,0.00016891,2]
[401444836,1768224639780,-155.33738213,0.00016909,2]
[401444837,1768224639790,-216.91872489,0.00016909,2]
[401444838,1768224639800,-184.82275868,0.00016909,2]
[401444839,1768224639810,-155.33738213,0.00016927,2]
[401444840,1768224639820,-216.91872489,0.00016927,2]
[401444841,1768224639829,-184.82275868,0.00016927,2]
[401444842,1768224639839,-168.0,0.00016938,2]
[401444843,1768224639848,-155.33738213,0.00016945,2]
[401444844,1768224639858,-216.91872489,0.00016945,2]
[401444845,1768224639868,-184.82275868,0.00016945,2]
[401444846,1768224639877,-155.33738213,0.00016964,2]
[401444847,1768224639887,-216.91872489,0.00016964,2]
[401444848,1768224639896,-184.82275868,0.00016964,2]
[401444849,1768224639906,-155.33738213,0.00016982,2]
[401444850,1768224639916,-216.91872489,0.00016982,2]
[401444851,1768224639925,-184.82275868,0.00016982,2]
[401444852,1768224639935,-155.33738213,0.00017,2]
[401444853,1768224639944,-216.91872489,0.00017,2]
[401444854,1768224639954,-184.82275868,0.00017,2]
[401444856,1768224639963,-776.50436,0.00017,2]
[401444857,1768224639973,-250.0,0.00017,2]
[401444858,1768224639982,-1553.3,0.00017007,2]
[401444859,1768224639992,-155.33738213,0.00017018,2]
[401444860,1768224640003,-216.91872489,0.00017018,2]
[401444861,1768224640012,-150.0,0.00017018,2]
[401444863,1768224640022,-184.82275868,0.00017018,2]
[401444864,1768224640033,-155.33738213,0.00017036,2]
[401444865,1768224640043,-216.91872489,0.00017036,2]
[401444866,1768224640052,-184.82275868,0.00017036,2]
[401444867,1768224640062,-155.33738213,0.00017055,2]
[401444868,1768224640071,-216.91872489,0.00017055,2]
[401444869,1768224640081,-184.82275868,0.00017055,2]
[401444870,1768224640090,-487.57806594,0.00017073,2]
[401444871,1768224640100,-500.70457439,0.00017073,2]
[401444872,1768224640110,-510.77976475,0.00017073,2]
[401444873,1768224640119,-500.0,0.00017073,2]
[401444874,1768224640128,-500.0,0.00017073,2]
[401444875,1768224640137,-500.0,0.00017073,2]
[401444876,1768224640147,-531.96318574,0.00017073,2]
[401444877,1768224640156,-500.0,0.00017073,2]
[401444878,1768224640166,-500.0,0.00017073,2]
[401444879,1768224640175,-531.53854137,0.00017073,2]
[401444880,1768224640185,-300.28905191,0.00017073,2]
[401444881,1768224640194,-500.0,0.00017073,2]
[401444882,1768224640204,-155.33738213,0.00017073,2]
[401444883,1768224640214,-216.91872489,0.00017073,2]
[401444884,1768224640224,-184.82275868,0.00017073,2]
[401444885,1768224640233,-3180.75325131,0.00017073,2]
[401444886,1768224640243,-155.33738213,0.00017091,2]
[401444887,1768224640253,-216.91872489,0.00017091,2]
[401444888,1768224640263,-184.82275868,0.00017091,2]
[401444889,1768224640273,-420.0,0.00017099,2]
[401444890,1768224640283,-150.0,0.000171,2]
[401444891,1768224640295,-150.0,0.000171,2]
[401444892,1768224640304,-1000.0,0.000171,3]
[401444893,1768224640314,-155.33738213,0.00017109,2]
[401444894,1768224640324,-216.91872489,0.00017109,2]
[401444895,1768224640334,-184.82275868,0.00017109,2]
[401444896,1768224640343,-1000.0,0.00017112,2]
[401444897,1768224640353,-155.33738213,0.00017127,2]
[401444898,1768224640362,-216.91872489,0.00017127,2]
[401444899,1768224640372,-184.82275868,0.00017127,2]
[401444900,1768224640381,-181.17466861,0.00017128,2]
[401444901,1768224640391,-155.33738213,0.00017145,2]
[401444902,1768224640400,-216.91872489,0.00017145,2]
[401444903,1768224640410,-184.82275868,0.00017145,2]
[401444904,1768224640421,-155.33738213,0.00017164,2]
[401444905,1768224640432,-216.91872489,0.00017164,2]
[401444906,1768224640442,-184.82275868,0.00017164,2]
[401444907,1768224640451,-200.0,0.00017174,2]
[401444908,1768224640461,-166.67,0.0001718,2]
[401444909,1768224640470,-155.33738213,0.00017182,2]
[401444910,1768224640480,-216.91872489,0.00017182,2]
[401444911,1768224640489,-150.0,0.00017182,2]
[401444912,1768224640500,-184.82275868,0.00017182,2]
[401444913,1768224640510,-1680.0,0.00017185,2]
[401444914,1768224640522,-155.33738213,0.000172,2]
[401444915,1768224640531,-216.91872489,0.000172,2]
[401444916,1768224640541,-184.82275868,0.000172,2]
[401444917,1768224640550,-155.33738213,0.00017218,2]
[401444918,1768224640563,-216.91872489,0.00017218,2]
[401444919,1768224640572,-184.82275868,0.00017218,2]
[401444920,1768224640582,-155.33738213,0.00017236,2]
[401444921,1768224640591,-216.91872489,0.00017236,2]
[401444922,1768224640600,-184.82275868,0.00017236,2]
[401444923,1768224640609,-168.0,0.00017238,2]
[401444924,1768224640619,-155.33738213,0.00017255,2]
[401444925,1768224640628,-216.91872489,0.00017255,2]
[401444926,1768224640638,-184.82275868,0.00017255,2]
[401444927,1768224640648,-2018.0,0.0001726,2]
[401444928,1768224640659,-155.33738213,0.00017273,2]
[401444929,1768224640669,-216.91872489,0.00017273,2]
[401444930,1768224640678,-184.82275868,0.00017273,2]
[401444931,1768224640689,-664.55,0.0001728,2]
[401444932,1768224640699,-168.0,0.00017281,2]
[401444933,1768224640710,-155.33738213,0.00017291,2]
[401444934,1768224640722,-216.91872489,0.00017291,2]
[401444935,1768224640732,-184.82275868,0.00017291,2]
[401444936,1768224640742,-155.33738213,0.00017309,2]
[401444937,1768224640754,-216.91872489,0.00017309,2]
[401444938,1768224640765,-184.82275868,0.00017309,2]
[401444939,1768224640775,-204.65,0.00017327,2]
[401444940,1768224640785,-155.33738213,0.00017327,2]
[401444941,1768224640795,-216.91872489,0.00017327,2]
[401444942,1768224640805,-184.82275868,0.00017327,2]
[401444943,1768224640815,-155.33738213,0.00017345,2]
[401444944,1768224640825,-216.91872489,0.00017345,2]
[401444945,1768224640836,-150.0,0.00017345,2]
[401444946,1768224640847,-184.82275868,0.00017345,2]
[401444947,1768224640858,-155.33738213,0.00017364,2]
[401444948,1768224640867,-216.91872489,0.00017364,2]
[401444949,1768224640879,-184.82275868,0.00017364,2]
[401444950,1768224640888,-155.33738213,0.00017382,2]
[401444951,1768224640898,-216.91872489,0.00017382,2]
[401444952,1768224640908,-184.82275868,0.00017382,2]
[401444953,1768224640918,-181.17466861,0.00017385,2]
[401444954,1768224640928,-2579.29224651,0.00017399,2]
[401444955,1768224640939,-155.33738213,0.000174,2]
[401444956,1768224640949,-216.91872489,0.000174,2]
[401444957,1768224640959,-150.0,0.000174,2]
[401444958,1768224640969,-184.82275868,0.000174,2]
[401444959,1768224640981,-150.0,0.000174,2]
[401444960,1768224640992,-150.0,0.000174,2]
[401444961,1768224641002,-1000.0,0.000174,2]
[401444962,1768224641012,-1000.0,0.000174,2]
[401444963,1768224641022,-1000.0,0.000174,2]
[401444964,1768224641033,-1000.0,0.000174,2]
[401444965,1768224641044,-1000.0,0.000174,2]
[401444966,1768224641053,-1198.0,0.000174,2]
[401444967,1768224641063,-158.81892862,0.00017411,2]
[401444968,1768224641075,-155.33738213,0.00017418,2]
[401444969,1768224641087,-216.91872489,0.00017418,2]
[401444970,1768224641098,-184.82275868,0.00017418,2]
[401444971,1768224641109,-155.33738213,0.00017436,2]
[401444972,1768224641121,-216.91872489,0.00017436,2]
[401444973,1768224641132,-184.82275868,0.00017436,2]
[401444974,1768224641144,-155.33738213,0.00017455,2]
[401444975,1768224641157,-216.91872489,0.00017455,2]
[401444976,1768224641168,-184.82275868,0.00017455,2]
[401444977,1768224641179,-2579.29224646,0.00017455,2]
[401444978,1768224641188,-155.33738213,0.00017473,2]
[401444979,1768224641199,-216.91872489,0.00017473,2]
[401444980,1768224641208,-184.82275868,0.00017473,2]
[401444981,1768224641218,-155.33738213,0.00017491,2]
[401444982,1768224641228,-216.91872489,0.00017491,2]
[401444983,1768224641240,-184.82275868,0.00017491,2]
[401444984,1768224641251,-2018.0,0.00017493,2]
[401444985,1768224641261,-2018.0,0.00017499,2]
[401444986,1768224641271,-2000.0,0.000175,2]
[401444987,1768224641281,-155.33738213,0.00017509,2]
[401444988,1768224641290,-216.91872489,0.00017509,2]
[401444989,1768224641300,-150.0,0.00017509,2]
[401444990,1768224641310,-184.82275868,0.00017509,2]
[401444991,1768224641320,-2579.29224646,0.0001751,2]
[401444992,1768224641329,-155.33738213,0.00017527,2]
[401444993,1768224641339,-216.91872489,0.00017527,2]
[401444994,1768224641348,-184.82275868,0.00017527,2]
[401444995,1768224641357,-155.33738213,0.00017545,2]
[401444996,1768224641367,-216.91872489,0.00017545,2]
[401444997,1768224641376,-184.82275868,0.00017545,2]
[401444998,1768224641386,-155.33738213,0.00017564,2]
[401444999,1768224641395,-216.91872489,0.00017564,2]
[401445000,1768224641405,-184.82275868,0.00017564,2]
[401445001,1768224641419,-2579.29224646,0.00017566,2]
[401445002,1768224641431,-1936.8892,0.00017573,2]
[401445003,1768224641440,-155.33738213,0.00017582,2]
[401445004,1768224641455,-216.91872489,0.00017582,2]
[401445005,1768224641466,-184.82275868,0.00017582,2]
[401445006,1768224641476,-155.33738213,0.000176,2]
[401445007,1768224641486,-216.91872489,0.000176,2]
[401445008,1768224641495,-184.82275868,0.000176,2]
[401445009,1768224641506,-159.3,0.00017601,2]
[401445010,1768224641516,-155.33738213,0.00017618,2]
[401445011,1768224641525,-216.91872489,0.00017618,2]
[401445012,1768224641534,-184.82275868,0.00017618,2]
[401445013,1768224641543,-1000.0,0.00017621,2]
[401445014,1768224641552,-540.4577012,0.00017621,2]
[401445015,1768224641561,-1000.0,0.00017621,2]
[401445016,1768224641571,-1000.0,0.00017621,2]
[401445017,1768224641580,-1000.0,0.00017621,2]
[401445018,1768224641589,-246.48133113,0.00017621,2]
[401445019,1768224641599,-2579.29224646,0.00017622,2]
[401445020,1768224641608,-155.33738213,0.00017636,2]
[401445021,1768224641618,-216.91872489,0.00017636,2]
[401445022,1768224641627,-184.82275868,0.00017636,2]
[401445023,1768224641636,-7217.71732448,0.0001764,2]
[401445024,1768224641646,-181.17466861,0.00017643,2]
[401445025,1768224641656,-155.33738213,0.00017655,2]
[401445026,1768224641665,-216.91872489,0.00017655,2]
[401445027,1768224641675,-184.82275868,0.00017655,2]
[401445028,1768224641686,-204.65,0.00017672,2]
[401445029,1768224641696,-155.33738213,0.00017673,2]
[401445030,1768224641707,-216.91872489,0.00017673,2]
[401445031,1768224641718,-150.0,0.00017673,2]
[401445032,1768224641729,-184.82275868,0.00017673,2]
[401445033,1768224641738,-1000.0,0.00017674,2]
[401445034,1768224641749,-2579.29224646,0.00017677,2]
[401445035,1768224641759,-155.33738213,0.00017691,2]
[401445036,1768224641769,-216.91872489,0.00017691,2]
[401445037,1768224641779,-184.82275868,0.00017691,2]
[401445038,1768224641789,-1000.0,0.00017694,2]
[401445039,1768224641799,-150.0,0.000177,2]
[401445040,1768224641808,-150.0,0.000177,2]
[401445041,1768224641818,-1000.0,0.00017709,2]
[401445042,1768224641828,-155.33738213,0.00017709,2]
[401445043,1768224641838,-216.91872489,0.00017709,2]
[401445044,1768224641849,-184.82275868,0.00017709,2]
[401445045,1768224641859,-155.33738213,0.00017727,2]
[401445046,1768224641870,-216.91872489,0.00017727,2]
[401445047,1768224641879,-184.82275868,0.00017727,2]
[401445048,1768224641889,-3069.528,0.00017728,2]
[401445049,1768224641910,-174.579,0.00017728,2]
[401445050,1768224641919,-1000.0,0.0001773,2]
[401445051,1768224641929,-2579.29224646,0.00017733,2]
[401445052,1768224641938,-1000.0,0.00017743,2]
[401445053,1768224641948,-155.33738213,0.00017745,2]
[401445054,1768224641959,-216.91872489,0.00017745,2]
[401445055,1768224641969,-184.82275868,0.00017745,2]
[401445056,1768224641981,-155.33738213,0.00017764,2]
[401445057,1768224641991,-216.91872489,0.00017764,2]
[401445058,1768224642005,-184.82275868,0.00017764,2]
[401445059,1768224642014,-1000.0,0.00017766,2]
[401445060,1768224642024,-1000.0,0.00017777,2]
[401445061,1768224642034,-1000.0,0.00017777,2]
[401445062,1768224642044,-500.0,0.00017781,2]
[401445063,1768224642054,-155.33738213,0.00017782,2]
[401445064,1768224642064,-216.91872489,0.00017782,2]
[401445065,1768224642075,-184.82275868,0.00017782,2]
[401445066,1768224642088,-3082.6433242,0.00017787,2]
[401445067,1768224642099,-2579.29224646,0.00017789,2]
[401445068,1768224642111,-3082.64332413,0.000178,2]
[401445069,1768224642121,-255.97089306,0.000178,2]
[401445070,1768224642132,-2148.9329,0.000178,2]
[401445071,1768224642142,-38239.0414,0.000178,2]
[401445072,1768224642152,-155.33738213,0.000178,2]
[401445073,1768224642164,-216.91872489,0.000178,2]
[401445074,1768224642176,-184.82275868,0.000178,2]
[401445075,1768224642190,-1000.0,0.00017801,2]
[401445076,1768224642199,-1000.0,0.00017803,2]
[401445077,1768224642209,-295.67038581,0.00017807,2]
[401445078,1768224642219,-3082.64332413,0.00017812,2]
[401445079,1768224642230,-155.33738213,0.00017818,2]
[401445080,1768224642240,-216.91872489,0.00017818,2]
[401445081,1768224642250,-184.82275868,0.00017818,2]
[401445082,1768224642258,-1465.52784,0.0001782,2]
[401445083,1768224642267,-1465.52784,0.0001782,2]
[401445084,1768224642277,-3082.64332413,0.00017825,2]
[401445085,1768224642287,-1465.52784,0.0001783,2]
[401445086,1768224642297,-155.33738213,0.00017836,2]
[401445087,1768224642308,-216.91872489,0.00017836,2]
[401445089,1768224642317,-150.0,0.00017836,2]
[401445091,1768224642328,-184.82275868,0.00017836,2]
[401445094,1768224642337,-3082.64332413,0.00017837,2]
[401445097,1768224642346,-2579.29224646,0.00017844,2]
[401445099,1768224642356,-3082.64332413,0.0001785,2]
[401445102,1768224642367,-155.33738213,0.00017855,2]
[401445103,1768224642378,-216.91872489,0.00017855,2]
[401445104,1768224642388,-184.82275868,0.00017855,2]
[401445105,1768224642400,-200.0,0.00017856,2]
[401445106,1768224642410,-21665.86636592,0.00017857,2]
[401445107,1768224642423,-2018.0,0.00017859,2]
[401445108,1768224642433,-5515.39705,0.0001786,2]
[401445109,1768224642444,-1465.52784,0.0001786,2]
[401445110,1768224642457,-3082.64332413,0.00017862,2]
[401445111,1768224642468,-155.33738213,0.00017873,2]
[401445112,1768224642480,-216.91872489,0.00017873,2]
[401445113,1768224642490,-184.82275868,0.00017873,2]
[401445114,1768224642502,-3082.64332413,0.00017875,2]
[401445115,1768224642512,-1000.0,0.00017879,2]
[401445116,1768224642521,-1465.52784,0.0001788,2]
[401445117,1768224642532,-1000.0,0.00017882,2]
[401445118,1768224642544,-1000.0,0.00017885,2]
[401445119,1768224642555,-49775.09010823,0.00017887,2]
[401445120,1768224642568,-80969.52019679,0.00017887,2]
[401445121,1768224642579,-114353.1282543,0.00017887,2]
[401445122,1768224642589,-147970.5381,0.00017887,2]
[401445123,1768224642599,-3082.64332413,0.00017887,2]
[401445124,1768224642610,-1000.0,0.00017888,2]
[401445125,1768224642619,-1000.0,0.0001789,2]
[401445126,1768224642629,-155.33738213,0.00017891,2]
[401445127,1768224642641,-216.91872489,0.00017891,2]
[401445128,1768224642650,-184.82275868,0.00017891,2]
[401445129,1768224642660,-150.0,0.00017891,2]
[401445130,1768224642670,-1000000.0,0.000179,2]
[401445131,1768224642679,-1000.0,0.000179,2]
[401445132,1768224642690,-10000.0,0.000179,2]
[401445133,1768224642699,-3082.64332413,0.000179,2]
[401445134,1768224642709,-2579.29224646,0.000179,2]
[401445135,1768224642719,-181.17466861,0.000179,2]
[401445136,1768224642729,-9052.0,0.000179,2]
[401445137,1768224642739,-155.33738213,0.00017909,2]
[401445138,1768224642749,-216.91872489,0.00017909,2]
[401445139,1768224642759,-184.82275868,0.00017909,2]
[401445140,1768224642768,-1465.52784,0.0001791,2]
[401445141,1768224642778,-1000.0,0.00017927,2]
[401445142,1768224642788,-155.33738213,0.00017927,2]
[401445143,1768224642798,-216.91872489,0.00017927,2]
[401445144,1768224642807,-184.82275868,0.00017927,2]
[401445145,1768224642817,-2018.0,0.00017929,2]
[401445146,1768224642827,-155.33738213,0.00017945,2]
[401445147,1768224642838,-216.91872489,0.00017945,2]
[401445148,1768224642847,-184.82275868,0.00017945,2]
[401445149,1768224642857,-1000.0,0.00017956,2]
[401445150,1768224642867,-155.33738213,0.00017964,2]
[401445151,1768224642879,-216.91872489,0.00017964,2]
[401445152,1768224642889,-184.82275868,0.00017964,2]
[401445153,1768224642898,-500.0,0.00017973,2]
[401445154,1768224642907,-501.47661499,0.00017973,2]
[401445155,1768224642917,-500.0,0.00017973,2]
[401445156,1768224642926,-500.0,0.00017973,2]
[401445157,1768224642936,-645.16964219,0.00017973,2]
[401445158,1768224642946,-500.0,0.00017973,2]
[401445159,1768224642955,-501.38258594,0.00017973,2]
[401445160,1768224642964,-501.12911319,0.00017973,2]
[401445162,1768224642974,-500.0,0.00017973,2]
[401445165,1768224642983,-500.0,0.00017973,2]
[401445167,1768224642992,-644.05438872,0.00017973,2]
[401445168,1768224643002,-502.23302881,0.00017973,2]
[401445170,1768224643011,-500.0,0.00017973,2]
[401445171,1768224643021,-501.2767774,0.00017973,2]
[401445172,1768224643030,-500.0,0.00017973,2]
[401445173,1768224643040,-500.0,0.00017973,2]
[401445174,1768224643049,-500.0,0.00017973,2]
[401445175,1768224643059,-183.29515175,0.00017973,2]
[401445176,1768224643069,-315.19949159,0.00017973,2]
[401445177,1768224643078,-500.0,0.00017973,2]
[401445178,1768224643088,-500.0,0.00017973,2]
[401445179,1768224643098,-500.0,0.00017973,2]
[401445180,1768224643107,-599.69310789,0.00017973,2]
[401445181,1768224643117,-502.71154611,0.00017973,2]
[401445182,1768224643127,-500.0,0.00017973,2]
[401445183,1768224643136,-500.55153068,0.00017973,2]
[401445184,1768224643146,-502.46613412,0.00017973,2]
[401445185,1768224643156,-500.0,0.00017973,2]
[401445186,1768224643165,-500.0,0.00017973,2]
[401445187,1768224643175,-500.0,0.00017973,2]
[401445188,1768224643186,-155.33738213,0.00017982,2]
[401445189,1768224643197,-216.91872489,0.00017982,2]
[401445190,1768224643474,-184.82275868,0.00017982,2]
[401445191,1768224643484,-152.92662848,0.00017982,2]
[401445192,1768224643495,-500.0,0.00017982,2]
[401445193,1768224643505,-1856.57725944,0.0001799,2]
[401445194,1768224643514,-300.0,0.00017999,2]
[401445195,1768224643523,-300.0,0.00017999,2]
[401445196,1768224643533,-677.99669903,0.00017999,2]
[401445197,1768224643542,-300.0,0.00017999,2]
[401445198,1768224643551,-300.0,0.00017999,2]
[401445199,1768224643561,-666.0,0.00017999,2]
[401445200,1768224643571,-300.0,0.00017999,2]
[401445201,1768224643580,-14302.37222132,0.00017999,2]
[401445202,1768224643590,-25000.0,0.00018,2]
[401445203,1768224643600,-155.33738213,0.00018,2]
[401445204,1768224643609,-216.91872489,0.00018,2]
[401445205,1768224643619,-150.0,0.00018,2]
[401445206,1768224643628,-150.0,0.00018,2]
[401445207,1768224643638,-184.82275868,0.00018,2]
[401445208,1768224643647,-150.0,0.00018,2]
[401445209,1768224643657,-150.0,0.00018,2]
[401445210,1768224643667,-1645421.73463048,0.00018,2]
[401445215,1768224644264,-5198.09525831,0.00018,2]
[401445216,1768224644277,-2188.98332652,0.00018,2]
[401445217,1768224644290,-5093.8900581,0.00018,2]
[401445222,1768224644799,-1273.216,0.00018,2]
[401445223,1768224644811,-2158.4752107,0.00018,2]
[401445224,1768224644866,-1047.49672135,0.00018,2]
[401445225,1768224644877,-1538.66862347,0.00018,2]
[401445226,1768224644889,-947.2502399,0.00018,2]
[401445227,1768224644900,-388.09645538,0.00018,2]
[401445228,1768224644916,-560.87172055,0.00018,2]
[401445229,1768224644929,-400.58598883,0.00018,2]
[401445232,1768224645520,-314.4172471,0.000179,2]
[401445233,1768224645533,-270.07342636,0.000179,2]
[401445234,1768224645547,-444.490599,0.000179,2]
[401445235,1768224645558,-449.22,0.000179,2]
[401445236,1768224645575,-2888.24666283,0.000179,2]
[401445237,1768224645585,-13249.09432165,0.00018,2]
[401445238,1768224645640,-151.0,0.00016403,2]
[401445239,1768224645651,-151.0,0.00016403,2]
[401445240,1768224645661,-2742.62874358,0.000179,2]
[401445241,1768224645670,-7161.90305647,0.00018,2]
[401445242,1768224645692,-92065.5,0.00018,2]
[401445243,1768224645703,-3498.88863397,0.00018,2]
[401445245,1768224645897,-1251.43648897,0.00018,2]
[401445270,1768224969148,5923.0,0.00011872,2]
[401445272,1768225048814,-150.0,0.00016114,2]
[401445274,1768225831583,-169.57,0.00012389,2]
[401445275,1768225831594,-251.0,0.00012389,2]
[401445276,1768225831605,-250.0,0.0001305,2]
[401445277,1768225831615,-49.05920142,0.00013628,2]
[401445278,1768225831733,-200.94079858,0.00013628,2]
[401445279,1768225831743,-250.0,0.00013628,2]
[401445280,1768225831753,-195.0,0.00013628,2]
[401445281,1768225831763,-300.0,0.0001371,2]
[401445282,1768225831775,-300.0,0.0001371,2]
[401445283,1768225831787,-164.20440502,0.0001371,2]
[401445290,1768225837691,-1035.79559498,0.0001371,2]
[401445291,1768225837701,-500.0,0.0001371,2]
[401445292,1768225837711,-500.0,0.0001371,2]
[401445293,1768225837720,-500.0,0.0001371,2]
[401445294,1768225837729,-378.75720689,0.0001371,2]
[401445295,1768225837739,-151.0,0.00013711,2]
[401445296,1768225837748,-151.0,0.00013711,2]
[401445297,1768225837757,-17.69689939,0.00013711,2]
[401445298,1768225837769,-133.30310061,0.00013711,2]
[401445299,1768225837778,-151.0,0.00013711,2]
[401445300,1768225837790,-1262.0,0.00013711,2]
[401445301,1768225837801,-114.31689939,0.00013711,2]
[401445302,1768225837812,-1147.68310061,0.00013711,2]
[401445303,1768225837821,-151.0,0.00013711,2]
[401445304,1768225837831,-45.26273054,0.00013711,2]
[401445305,1768225837843,-105.73726946,0.00013711,2]
[401445306,1768225837851,-1262.0,0.00013711,2]
[401445307,1768225837861,-151.0,0.00013711,2]
[401445308,1768225837870,-151.0,0.00013711,2]
[401445309,1768225837879,-1055.14661169,0.00013711,2]
[401445310,1768225837887,-103.27409784,0.00013711,2]
[401445311,1768225837898,-47.72590216,0.00013711,2]
[401445312,1768225837907,-151.0,0.00013711,2]
[401445313,1768225837916,-137.48156187,0.00013711,2]
[401445314,1768225837927,-14.51843813,0.00013711,2]
[401445315,1768225837935,-152.0,0.00013711,2]
[401445316,1768225837944,-151.0,0.00013711,2]
[401445317,1768225837953,-1262.0,0.00013711,2]
[401445318,1768225837962,-151.0,0.00013711,2]
[401445319,1768225837971,-151.0,0.00013711,2]
[401445320,1768225837980,-152.0,0.00013711,2]
[401445321,1768225837989,-151.0,0.00013711,2]
[401445322,1768225837998,-28.45679841,0.00013711,2]
[401445323,1768225838025,-122.54320159,0.00013711,2]
[401445325,1768225838034,-145.43382239,0.00013711,2]
[401445327,1768225838046,-6.56617761,0.00013711,2]
[401445328,1768225838057,-158.0,0.00013711,2]
[401445329,1768225838067,-151.0,0.00013711,2]
[401445330,1768225838077,-151.0,0.00013711,2]
[401445331,1768225838087,-158.47697175,0.00013711,2]
[401445332,1768225838097,-152.0,0.00013711,2]
[401445333,1768225838106,-151.0,0.00013711,2]
[401445334,1768225838116,-155.34893421,0.00013711,2]
[401445335,1768225838125,-151.0,0.00013711,2]
[401445336,1768225838135,-151.0,0.00013711,2]
[401445337,1768225838145,-152.0,0.00013711,2]
[401445338,1768225838155,-166.17004854,0.00013711,2]
[401445339,1768225838165,-151.0,0.00013711,2]
[401445340,1768225838175,-151.0,0.00013711,2]
[401445341,1768225838184,-265.0237075,0.00013711,2]
[401445342,1768225838194,-151.0,0.00013711,2]
[401445343,1768225838204,-151.0,0.00013711,2]
[401445344,1768225838213,-151.0,0.00013711,2]
[401445345,1768225838223,-151.0,0.00013711,2]
[401445346,1768225838232,-151.0,0.00013711,2]
[401445347,1768225838242,-151.0,0.00013711,2]
[401445348,1768225838251,-151.0,0.00013711,2]
[401445349,1768225838261,-151.0,0.00013711,2]
[401445350,1768225838271,-151.0,0.00013711,2]
[401445351,1768225838281,-151.0,0.00013711,2]
[401445352,1768225838291,-151.0,0.00013711,2]